bitfinex/quotes_ETHUSD_20251006
["timestamp","ask_amount","ask_price","bid_price","bid_amount"]
[1759720536823,18.09062,4538.2,4538.1,14.168767]
[1759720537239,19.32062,4538.2,4538.1,28.668767]
[1759720537758,19.32062,4538.2,4538.1,32.149338]
[1759720537959,19.32062,4538.2,4538.1,31.420338]
[1759720538269,21.52413681,4538.2,4538.1,4.825364]
[1759720538469,19.32062,4538.2,4538.1,2.501]
[1759720538638,21.52414441,4538.2,4538.1,2.501]
[1759720538967,2.20363572,4538.0,4537.7,0.1104]
[1759720539169,2.20361392,4538.0,4537.9,2.4]
[1759720539372,0.4396,4538.0,4537.9,4.992189]
[1759720539568,0.4396,4538.0,4537.9,5.27842]
[1759720539874,2.64321392,4538.0,4537.9,5.056213]
[1759720540060,4.81170573,4538.0,4537.9,5.056213]
[1759720540374,6.04170573,4538.0,4537.9,5.056213]
[1759720540671,3.83809181,4538.0,4537.9,5.056213]
[1759720540875,6.04170573,4538.0,4537.9,5.056213]
[1759720541074,6.04170573,4538.0,4537.8,2.501]
[1759720541274,2.20371394,4537.8,4537.4,0.1104]
[1759720541474,2.31420818,4537.6,4537.5,4.684267]
[1759720541647,2.75380818,4537.6,4537.5,2.501]
[1759720542046,0.55,4537.6,4537.5,5.278461]
[1759720542271,0.55,4537.6,4537.5,6.007461]
[1759720542545,0.94484918,4537.6,4537.5,6.007461]
[1759720542942,0.83444918,4537.6,4537.5,6.007461]
[1759720543147,2.06444918,4537.6,4537.5,6.007461]
[1759720543371,2.06444918,4537.6,4537.5,5.22106]
[1759720543564,2.06444918,4537.6,4537.5,6.242857]
[1759720543738,3.87340818,4537.6,4537.3,0.1104]
[1759720543943,3.87340818,4537.6,4536.6,0.6336]
[1759720543944,2.20385674,4537.5,4537.4,4.677853]
[1759720544171,2.20385674,4537.5,4537.4,4.655825]
[1759720544172,2.64345674,4537.5,4537.4,4.655825]
[1759720544566,3.87345674,4537.5,4537.4,4.652611]
[1759720544766,4.73822022,4537.5,4537.4,2.5]
[1759720545495,4.73822022,4537.5,4537.4,3.720495]
[1759720545695,4.73822022,4537.5,4537.4,2.502]
[1759720545902,5.96822022,4537.5,4537.4,2.502]
[1759720547308,7.19822022,4537.5,4537.4,2.502]
[1759720547506,7.19822022,4537.5,4537.4,4.858782]
[1759720547679,7.19822022,4537.5,4537.4,9.382373]
[1759720547864,7.19822022,4537.5,4537.4,9.27628]
[1759720548066,4.55476348,4537.5,4537.4,9.27628]
[1759720548499,5.78476348,4537.5,4537.4,9.27628]
[1759720548696,7.98862022,4537.5,4537.4,9.705154]
[1759720548891,7.98862022,4537.5,4537.4,8.59678]
[1759720549095,8.42822022,4537.5,4537.4,6.74578]
[1759720549664,8.42822022,4537.5,4537.4,2.502]
[1759720549893,9.65822022,4537.5,4537.4,2.502]
[1759720550394,9.65822022,4537.5,4537.4,8.469084]
[1759720550709,9.65822022,4537.5,4537.4,8.31178]
[1759720551307,10.88822022,4537.5,4537.4,8.31178]
[1759720551806,10.88822022,4537.5,4537.4,6.985813]
[1759720551965,10.88822022,4537.5,4537.4,6.464813]
[1759720552896,12.11822022,4537.5,4537.4,8.141813]
[1759720553620,9.47476348,4537.5,4537.4,8.141813]
[1759720553774,11.67862022,4537.5,4537.4,8.141813]
[1759720554096,11.67862022,4537.5,4537.4,9.911086]
[1759720554294,12.90862022,4537.5,4537.4,9.911086]
[1759720554885,13.34822022,4537.5,4537.4,2.5]
[1759720555088,10.70476348,4537.5,4537.4,8.334113]
[1759720555291,9.84,4537.5,4537.4,8.334113]
[1759720555831,13.27385674,4537.5,4537.4,8.334113]
[1759720555980,13.27385674,4537.5,4537.4,11.724704]
[1759720556377,11.07,4537.5,4537.4,11.724704]
[1759720557006,14.50385674,4537.5,4537.4,9.264372]
[1759720557192,16.47561873,4537.5,4537.4,8.397874]
[1759720557991,16.47561873,4537.5,4537.4,9.057953]
[1759720558390,15.50176199,4537.5,4537.4,9.057953]
[1759720558999,15.50176199,4537.5,4537.4,2.5]
[1759720559198,15.50176199,4537.5,4537.4,9.262095]
[1759720559737,17.70561873,4537.5,4537.4,9.262095]
[1759720560031,18.93561873,4537.5,4537.4,2.5]
[1759720560343,14.76,4537.5,4537.4,11.026353]
[1759720560800,14.76,4537.5,4537.4,12.975453]
[1759720561002,14.76,4537.5,4537.4,4.9]
[1759720561206,14.76,4537.5,4537.4,15.459533]
[1759720561402,15.99,4537.5,4537.4,15.459533]
[1759720561803,15.99,4537.5,4537.4,16.093133]
[1759720562002,15.99,4537.5,4537.4,16.544033]
[1759720562215,15.99,4537.5,4537.4,35.9845]
[1759720562641,15.99,4537.5,4537.4,17.018704]
[1759720562841,17.22,4537.5,4537.4,14.266995]
[1759720563154,17.22,4537.5,4537.4,30.866196]
[1759720563438,17.22,4537.5,4537.4,31.335496]
[1759720563842,17.22,4537.5,4537.4,24.083084]
[1759720564148,17.22,4537.5,4537.4,24.975337]
[1759720564442,18.45,4537.5,4537.4,25.444637]
[1759720565339,18.45,4537.5,4537.4,31.196242]
[1759720565542,18.45,4537.5,4537.4,31.306642]
[1759720565722,19.68,4537.5,4537.4,31.306642]
[1759720566347,19.68,4537.5,4537.4,36.1143]
[1759720566713,19.68,4537.5,4537.4,50.6143]
[1759720567141,20.91,4537.5,4537.4,50.6143]
[1759720568122,20.91,4537.5,4537.4,20.6143]
[1759720568324,22.14,4537.5,4537.4,50.6143]
[1759720568951,22.14,4537.5,4537.4,50.145]
[1759720569255,22.14,4537.5,4537.4,42.783512]
[1759720569459,24.79485674,4537.5,4537.4,4.944256]
[1759720569632,28.19334855,4537.5,4537.4,4.9]
[1759720569959,25.98949181,4537.5,4537.4,7.461966]
[1759720570256,23.37,4537.5,4537.4,13.947991]
[1759720571240,23.37,4537.5,4537.4,14.155092]
[1759720571439,24.6,4537.5,4537.4,14.788692]
[1759720572329,24.6,4537.5,4537.4,34.761937]
[1759720572642,24.6,4537.5,4537.4,34.872337]
[1759720572965,25.83,4537.5,4537.4,34.872337]
[1759720573338,25.83,4537.5,4537.4,23.761173]
[1759720573540,25.83,4537.5,4537.4,19.948621]
[1759720573743,25.83,4537.5,4537.4,22.447621]
[1759720574263,27.06,4537.5,4537.4,22.447621]
[1759720574435,27.06,4537.5,4537.4,23.655579]
[1759720574860,27.06,4537.5,4537.4,38.155579]
[1759720575364,27.06,4537.5,4537.4,38.212697]
[1759720575537,28.29,4537.5,4537.4,38.212697]
[1759720576167,28.29,4537.5,4537.4,38.681997]
[1759720576470,28.29,4537.5,4537.4,38.212697]
[1759720576764,28.29,4537.5,4537.4,44.829447]
[1759720576929,29.52,4537.5,4537.4,44.829447]
[1759720577328,29.52,4537.5,4537.4,45.298747]
[1759720577528,29.52,4537.5,4537.4,40.234301]
[1759720578388,30.75,4537.5,4537.4,40.234301]
[1759720578867,30.75,4537.5,4537.4,40.054889]
[1759720579657,31.98,4537.5,4537.4,41.474693]
[1759720579966,31.98,4537.5,4537.4,41.943993]
[1759720580765,31.98,4537.5,4537.4,50.6123]
[1759720580970,33.21,4537.5,4537.4,49.574618]
[1759720581168,33.21,4537.5,4537.4,38.774005]
[1759720581871,33.21,4537.5,4537.4,48.243284]
[1759720582183,33.21,4537.5,4537.4,50.73425669]
[1759720582385,34.44,4537.5,4537.4,50.73425669]
[1759720582770,34.44,4537.5,4537.4,50.6123]
[1759720583176,34.44,4537.5,4537.4,50.143]
[1759720583680,34.44,4537.5,4537.4,50.6123]
[1759720583884,35.67,4537.5,4537.4,50.6123]
[1759720584786,35.67,4537.5,4537.4,20.6123]
[1759720584984,35.67,4537.5,4537.4,50.143]
[1759720585152,36.9,4537.5,4537.4,50.143]
[1759720585353,36.9,4537.5,4537.4,50.6123]
[1759720585755,36.9,4537.5,4537.4,22.213305]
[1759720585986,2.20390532,4537.4,4537.3,0.001]
[1759720586289,2.31430532,4537.4,4537.3,0.001]
[1759720586586,6.49430532,4537.4,4537.3,0.001]
[1759720587854,7.72430532,4537.4,4537.3,0.001]
[1759720588484,12.44330532,4537.4,4537.3,0.001]
[1759720588685,2.2041482,4536.9,4536.8,1e-08]
[1759720588896,8.5145702,4536.9,4536.8,1e-08]
[1759720589062,8.9655702,4536.9,4536.8,1e-08]
[1759720589388,10.1955702,4536.9,4536.8,1e-08]
[1759720589977,2.20434255,4536.5,4536.3,0.001]
[1759720590176,5.25560328,4536.5,4536.3,0.001]
[1759720590504,5.70660328,4536.5,4536.3,0.001]
[1759720590792,7.02481324,4536.5,4536.3,0.001]
[1759720591391,9.42481324,4536.5,4536.3,0.001]
[1759720591690,9.42481324,4536.5,4536.1,0.001]
[1759720591691,2.20448833,4536.2,4536.1,1e-08]
[1759720591879,7.10448833,4536.2,4536.1,1e-08]
[1759720592092,8.89588833,4536.2,4536.1,1e-08]
[1759720593572,10.12688833,4536.2,4536.1,1e-08]
[1759720594474,10.57678389,4536.2,4536.1,1e-08]
[1759720594789,11.88677429,4536.2,4536.1,1e-08]
[1759720594990,13.11677429,4536.2,4536.1,1e-08]
[1759720595772,13.75037429,4536.2,4536.1,1e-08]
[1759720596163,14.98037429,4536.2,4536.1,1e-08]
[1759720597621,15.41197425,4536.2,4536.1,1e-08]
[1759720597819,16.64197425,4536.2,4536.1,1e-08]
[1759720598820,16.00837425,4536.2,4536.1,1e-08]
[1759720599187,17.23837425,4536.2,4536.1,1e-08]
[1759720600527,18.46837425,4536.2,4536.1,1e-08]
[1759720601837,17.19737425,4536.2,4536.1,1e-08]
[1759720602038,19.69837425,4536.2,4536.1,1e-08]
[1759720603542,20.92837425,4536.2,4536.1,1e-08]
[1759720604363,23.87007425,4536.2,4536.1,1e-08]
[1759720604504,23.95830795,4536.2,4536.1,1e-08]
[1759720604718,23.95830795,4536.2,4535.6,0.001]
[1759720604719,2.2049258,4535.3,4535.2,1e-08]
[1759720605064,4.7059258,4535.3,4535.2,1e-08]
[1759720605235,5.1460258,4535.3,4535.2,1e-08]
[1759720605413,5.2564258,4535.3,4535.2,1e-08]
[1759720606238,6.4864258,4535.3,4535.2,1e-08]
[1759720606445,7.35555357,4535.3,4535.2,1e-08]
[1759720607661,8.58555357,4535.3,4535.2,1e-08]
[1759720608820,9.81555357,4535.3,4535.2,1e-08]
[1759720610216,7.31455357,4535.3,4535.2,1e-08]
[1759720610431,11.04555357,4535.3,4535.2,1e-08]
[1759720611046,8.54455357,4535.3,4535.2,1e-08]
[1759720611261,11.04455357,4535.3,4535.2,1e-08]
[1759720611826,12.27455357,4535.3,4535.2,1e-08]
[1759720613125,13.50455357,4535.3,4535.2,1e-08]
[1759720614452,17.05355357,4535.3,4535.2,1e-08]
[1759720614624,14.55355357,4535.3,4535.2,1e-08]
[1759720614827,17.05355357,4535.3,4535.2,1e-08]
[1759720615540,17.05355357,4535.3,4534.2,0.001]
[1759720615541,2.20541208,4534.3,4534.2,0.001]
[1759720615745,4.70541208,4534.3,4534.2,0.001]
[1759720617238,5.93541208,4534.3,4534.2,0.001]
[1759720618656,7.16541208,4534.3,4534.2,0.4296]
[1759720619354,8.10248694,4534.3,4534.2,0.4296]
[1759720619722,9.33248694,4534.3,4534.2,0.4296]
[1759720621148,10.56248694,4534.3,4534.2,0.4296]
[1759720621850,8.06248694,4534.3,4534.2,0.4296]
[1759720622154,10.56348694,4534.3,4534.2,0.4296]
[1759720622754,11.79348694,4534.3,4534.2,0.4296]
[1759720623324,11.79348694,4534.3,4534.2,0.001]
[1759720623941,12.23538694,4534.3,4534.2,0.001]
[1759720624226,13.46538694,4534.3,4534.2,0.001]
[1759720624426,13.02348694,4534.3,4534.2,0.001]
[1759720624966,10.52248694,4534.3,4534.2,0.4668]
[1759720625149,9.58541208,4534.3,4534.2,0.4668]
[1759720625324,10.81541208,4534.3,4534.2,0.4668]
[1759720625529,10.92581208,4534.3,4534.2,0.4668]
[1759720627170,12.15581208,4534.3,4534.2,0.4668]
[1759720628590,14.28711503,4534.3,4534.2,0.001]
[1759720629885,15.95901503,4534.3,4534.2,0.001]
[1759720630776,2.20560665,4533.9,4533.8,1e-08]
[1759720631072,4.70660665,4533.9,4533.8,1e-08]
[1759720631273,6.78241071,4533.9,4533.8,1e-08]
[1759720632587,8.01241071,4533.9,4533.8,1e-08]
[1759720634277,9.24241071,4533.9,4533.8,1e-08]
[1759720635109,6.74141071,4533.9,4533.8,0.46580001]
[1759720635490,10.47241071,4533.9,4533.8,0.46580001]
[1759720636293,7.97141071,4533.9,4533.8,0.46580001]
[1759720636492,10.47241071,4533.9,4533.8,0.46580001]
[1759720636997,11.70241071,4533.9,4533.8,0.46580001]
[1759720638525,12.93241071,4533.9,4533.8,0.46580001]
[1759720639618,12.93241071,4533.9,4533.8,1e-08]
[1759720639619,14.16241071,4533.9,4533.8,1e-08]
[1759720639833,14.49391071,4533.9,4533.8,1e-08]
[1759720640316,16.81291071,4533.9,4533.8,1e-08]
[1759720640527,16.81291071,4533.9,4533.2,0.001]
[1759720640528,2.20589857,4533.3,4533.2,1e-08]
[1759720640683,2.20594723,4533.2,4533.1,1e-08]
[1759720640881,2.64784723,4533.2,4533.1,1e-08]
[1759720642205,2.20594723,4533.2,4533.1,1e-08]
[1759720642425,3.43594723,4533.2,4533.1,1e-08]
[1759720643530,5.93694723,4533.2,4533.1,1e-08]
[1759720643731,8.34687326,4533.2,4533.1,1e-08]
[1759720644099,5.84587326,4533.2,4533.1,1e-08]
[1759720644304,8.34687326,4533.2,4533.1,1e-08]
[1759720645240,9.57687326,4533.2,4533.1,1e-08]
[1759720645705,7.07587326,4533.2,4533.1,1e-08]
[1759720645906,10.01877326,4533.2,4533.1,1e-08]
[1759720646516,10.70587326,4533.2,4533.1,1e-08]
[1759720646710,13.20687326,4533.2,4533.1,1e-08]
[1759720647110,13.64877326,4533.2,4533.1,1e-08]
[1759720647646,10.70587326,4533.2,4533.1,1e-08]
[1759720647858,12.03687326,4533.2,4533.1,0.46580001]
[1759720648041,9.53587326,4533.2,4533.1,1e-08]
[1759720648355,12.03687326,4533.2,4533.1,1e-08]
[1759720648704,9.53587326,4533.2,4533.1,1e-08]
[1759720649032,8.35594723,4533.2,4533.1,0.46580001]
[1759720649343,9.58594723,4533.2,4533.1,0.46580001]
[1759720649856,9.69634723,4533.2,4533.1,0.46580001]
[1759720650013,9.69634723,4533.2,4533.1,1e-08]
[1759720650661,10.92634723,4533.2,4533.1,1e-08]
[1759720650819,12.61266833,4533.2,4533.1,1e-08]
[1759720652150,13.84266833,4533.2,4533.1,1e-08]
[1759720652816,13.84266833,4533.2,4533.1,0.43690001]
[1759720653050,13.84266833,4533.2,4533.1,1e-08]
[1759720653425,17.57366833,4533.2,4533.1,1e-08]
[1759720654329,15.07266833,4533.2,4533.1,1e-08]
[1759720654650,17.57366833,4533.2,4533.1,1e-08]
[1759720654952,18.80366833,4533.2,4533.1,1e-08]
[1759720655456,16.30266833,4533.2,4533.1,0.44320001]
[1759720655833,18.80366833,4533.2,4533.1,0.44320001]
[1759720656150,17.11734723,4533.2,4533.1,0.44320001]
[1759720656326,18.34734723,4533.2,4533.1,0.44320001]
[1759720657759,19.57734723,4533.2,4533.1,0.44320001]
[1759720657956,19.57734723,4533.2,4533.1,0.44420001]
[1759720658252,19.57934723,4533.2,4533.1,0.00100001]
[1759720658449,21.74783904,4533.2,4533.1,0.00100001]
[1759720659122,22.97783904,4533.2,4533.1,0.00100001]
[1759720660460,24.20783904,4533.2,4533.1,0.00100001]
[1759720662056,20.76834723,4533.2,4533.1,0.00100001]
[1759720662277,23.26934723,4533.2,4533.1,0.44420001]
[1759720663558,24.49934723,4533.2,4533.1,0.00100001]
[1759720665679,25.72934723,4533.2,4533.1,0.00100001]
[1759720666681,25.72934723,4533.2,4533.1,0.44420001]
[1759720666894,22.2524,4533.2,4533.1,0.00100001]
[1759720667182,24.31049181,4533.2,4533.1,0.00100001]
[1759720667388,29.01743904,4533.2,4533.1,0.00100001]
[1759720668190,30.24743904,4533.2,4533.1,0.00100001]
[1759720669871,31.47743904,4533.2,4533.1,0.00100001]
[1759720671495,32.70743904,4533.2,4533.1,0.00100001]
[1759720671707,33.16273904,4533.2,4533.1,0.00100001]
[1759720671915,32.70743904,4533.2,4533.1,0.00100001]
[1759720672588,33.16273904,4533.2,4533.1,0.00100001]
[1759720672784,33.93743904,4533.2,4533.1,0.00100001]
[1759720674229,35.16743904,4533.2,4533.1,0.00100001]
[1759720674929,35.62273904,4533.2,4533.1,0.00100001]
[1759720675685,36.85273904,4533.2,4533.1,0.00100001]
[1759720676155,36.39743904,4533.2,4533.1,0.00100001]
[1759720677014,37.62743904,4533.2,4533.1,0.00100001]
[1759720677249,37.73783904,4533.2,4533.1,0.00100001]
[1759720677819,38.19313904,4533.2,4533.1,0.00100001]
[1759720678453,39.42313904,4533.2,4533.1,0.00100001]
[1759720679722,37.69683904,4533.2,4533.1,0.00100001]
[1759720680053,40.19783904,4533.2,4533.1,0.00100001]
[1759720681156,41.42783904,4533.2,4533.1,0.00100001]
[1759720681352,38.92683904,4533.2,4533.1,0.00100001]
[1759720681653,41.42783904,4533.2,4533.1,0.44420001]
[1759720681853,41.42783904,4533.2,4533.1,0.00100001]
[1759720682631,42.65783904,4533.2,4533.1,0.00100001]
[1759720683938,43.88783904,4533.2,4533.1,0.00100001]
[1759720685234,45.11783904,4533.2,4533.1,0.00100001]
[1759720686849,46.34783904,4533.2,4533.1,0.00100001]
[1759720688070,46.77673904,4533.2,4533.1,0.00100001]
[1759720688239,48.00673904,4533.2,4533.1,0.00100001]
[1759720688645,48.00673904,4533.2,4532.6,0.001]
[1759720688646,2.20619057,4532.7,4532.6,1e-08]
[1759720688956,4.70719057,4532.7,4532.6,1e-08]
[1759720689169,2.20619057,4532.7,4532.6,1e-08]
[1759720689470,4.70719057,4532.7,4532.6,1e-08]
[1759720689665,5.93719057,4532.7,4532.6,1e-08]
[1759720689858,6.7625615,4532.7,4532.6,1e-08]
[1759720690060,4.2615615,4532.7,4532.6,1e-08]
[1759720690252,4.3719615,4532.7,4532.6,0.43650001]
[1759720690453,6.8719615,4532.7,4532.6,0.43650001]
[1759720690652,6.8719615,4532.7,4532.6,1e-08]
[1759720691053,8.1019615,4532.7,4532.6,1e-08]
[1759720691469,8.1029615,4532.7,4532.6,1e-08]
[1759720692491,9.3329615,4532.7,4532.6,1e-08]
[1759720693661,6.8319615,4532.7,4532.6,0.43650001]
[1759720693858,7.23659057,4532.7,4532.6,0.43650001]
[1759720695167,8.46659057,4532.7,4532.6,0.43650001]
[1759720695363,6.2604,4532.7,4532.6,0.43650001]
[1759720695684,8.46659057,4532.7,4532.6,0.43650001]
[1759720696475,9.69659057,4532.7,4532.6,0.43650001]
[1759720697077,7.4904,4532.7,4532.6,0.43650001]
[1759720697408,7.38,4532.7,4532.6,0.43650001]
[1759720697776,8.61,4532.7,4532.6,7.25491401]
[1759720697996,8.61,4532.7,4532.6,7.19977401]
[1759720698184,8.61,4532.7,4532.6,10.21611901]
[1759720698493,8.61,4532.7,4532.6,7.54908401]
[1759720699293,9.84,4532.7,4532.6,7.35120601]
[1759720700305,9.84,4532.7,4532.6,7.19999601]
[1759720700510,9.84,4532.7,4532.6,1e-08]
[1759720700511,12.04619057,4532.7,4532.6,1e-08]
[1759720700718,13.27619057,4532.7,4532.6,0.43650001]
[1759720701076,13.27619057,4532.7,4532.6,1e-08]
[1759720702096,13.27619057,4532.7,4532.6,0.43650001]
[1759720702433,14.50619057,4532.7,4532.6,5.06104701]
[1759720702615,12.3,4532.7,4532.6,3.53149001]
[1759720703117,14.50619057,4532.7,4532.6,3.53149001]
[1759720703327,14.50619057,4532.7,4532.6,1e-08]
[1759720703513,16.17741913,4532.7,4532.6,1e-08]
[1759720703716,17.40741913,4532.7,4532.6,1e-08]
[1759720704022,17.83631913,4532.7,4532.6,1e-08]
[1759720704978,20.33631913,4532.7,4532.6,1e-08]
[1759720705315,21.56631913,4532.7,4532.6,1e-08]
[1759720706318,21.76012856,4532.7,4532.1,1e-08]
[1759720706527,2.20643396,4532.2,4532.1,1e-08]
[1759720706821,4.70643396,4532.2,4532.1,1e-08]
[1759720707223,5.24573396,4532.2,4532.1,1e-08]
[1759720708125,6.47573396,4532.2,4532.1,1e-08]
[1759720708331,3.97573396,4532.2,4532.1,1e-08]
[1759720708488,7.3260433,4532.2,4532.1,1e-08]
[1759720709227,9.7260433,4532.2,4532.1,1e-08]
[1759720709423,10.9560433,4532.2,4532.1,1e-08]
[1759720710427,7.9167433,4532.2,4532.1,1e-08]
[1759720710593,8.0167433,4532.2,4532.1,1e-08]
[1759720710923,6.7467433,4532.2,4532.1,1e-08]
[1759720711095,9.6756433,4532.2,4532.1,1e-08]
[1759720712521,10.9056433,4532.2,4532.1,1e-08]
[1759720713794,12.1356433,4532.2,4532.1,1e-08]
[1759720713994,12.1536433,4532.2,4532.1,1e-08]
[1759720714233,12.24194049,4532.2,4532.1,1e-08]
[1759720714829,9.74194049,4532.2,4532.1,1e-08]
[1759720715138,13.02604049,4532.2,4532.1,1e-08]
[1759720716529,14.25604049,4532.2,4532.1,1e-08]
[1759720717536,14.70294049,4532.2,4532.1,1e-08]
[1759720717733,15.93294049,4532.2,4532.1,1e-08]
[1759720719341,18.33294049,4532.2,4532.1,1e-08]
[1759720719640,19.56294049,4532.2,4532.1,1e-08]
[1759720720446,19.67334049,4532.2,4532.1,1e-08]
[1759720721005,20.90334049,4532.2,4532.1,1e-08]
[1759720722463,22.13334049,4532.2,4532.1,1e-08]
[1759720724557,23.36334049,4532.2,4532.1,1e-08]
[1759720725964,23.36534049,4532.2,4532.1,1e-08]
[1759720726255,24.59534049,4532.2,4532.1,1e-08]
[1759720726780,19.13704049,4532.2,4532.1,1e-08]
[1759720726928,18.19843396,4532.2,4532.1,0.46410001]
[1759720727130,15.992,4532.2,4532.1,0.46410001]
[1759720727436,17.222,4532.2,4532.1,0.46410001]
[1759720728333,19.42843396,4532.2,4532.1,0.46410001]
[1759720728852,17.222,4532.2,4532.1,15.86106901]
[1759720729062,17.222,4532.2,4532.1,15.00575901]
[1759720729063,18.452,4532.2,4532.1,15.00575901]
[1759720729573,18.452,4532.2,4532.1,7.63333501]
[1759720729972,18.452,4532.2,4532.1,7.68232101]
[1759720730164,18.452,4532.2,4532.1,7.20535301]
[1759720730348,19.682,4532.2,4532.1,7.20535301]
[1759720730949,19.682,4532.2,4532.1,8.22756301]
[1759720731181,19.682,4532.2,4532.1,7.45431701]
[1759720731773,20.912,4532.2,4532.1,7.45431701]
[1759720731971,23.11843396,4532.2,4532.1,0.46410001]
[1759720732180,23.11843396,4532.2,4532.1,1e-08]
[1759720732349,25.61943396,4532.2,4532.1,1e-08]
[1759720733153,26.84943396,4532.2,4532.1,1e-08]
[1759720734678,28.07943396,4532.2,4532.1,1e-08]
[1759720735000,30.24792577,4532.2,4532.1,1e-08]
[1759720735176,25.54049181,4532.2,4532.1,1e-08]
[1759720735479,30.24692577,4532.2,4532.1,1e-08]
[1759720736052,31.47692577,4532.2,4532.1,1e-08]
[1759720737109,31.58732577,4532.2,4532.1,1e-08]
[1759720737707,32.81732577,4532.2,4532.1,1e-08]
[1759720738606,30.31732577,4532.2,4532.1,1e-08]
[1759720738804,32.81732577,4532.2,4532.1,1e-08]
[1759720739023,34.04732577,4532.2,4532.1,1e-08]
[1759720740211,31.54732577,4532.2,4532.1,1e-08]
[1759720740416,35.72422577,4532.2,4532.1,1e-08]
[1759720741882,36.95422577,4532.2,4532.1,1e-08]
[1759720743326,38.18422577,4532.2,4532.1,1e-08]
[1759720743895,35.68422577,4532.2,4532.1,1e-08]
[1759720744095,38.18422577,4532.2,4532.1,1e-08]
[1759720744825,39.41422577,4532.2,4532.1,1e-08]
[1759720745024,38.96732577,4532.2,4532.1,1e-08]
[1759720745228,36.46732577,4532.2,4532.1,1e-08]
[1759720745460,34.29883396,4532.2,4532.1,0.45920001]
[1759720745945,34.29883396,4532.2,4532.1,1e-08]
[1759720746093,38.45683396,4532.2,4532.1,1e-08]
[1759720746901,35.52883396,4532.2,4532.1,1e-08]
[1759720747103,38.02883396,4532.2,4532.1,1e-08]
[1759720747302,41.42732577,4532.2,4532.1,1e-08]
[1759720748932,42.65732577,4532.2,4532.1,1e-08]
[1759720750531,43.88732577,4532.2,4532.1,1e-08]
[1759720751750,39.21883396,4532.2,4532.1,0.45920001]
[1759720752048,40.44883396,4532.2,4532.1,0.45920001]
[1759720752527,40.44883396,4532.2,4532.1,1e-08]
[1759720752925,40.44883396,4532.2,4532.1,0.45920001]
[1759720753231,40.44883396,4532.2,4532.1,1e-08]
[1759720753438,41.67883396,4532.2,4532.1,1e-08]
[1759720753955,44.17883396,4532.2,4532.1,1e-08]
[1759720754325,41.67883396,4532.2,4532.1,0.45920001]
[1759720754844,42.90883396,4532.2,4532.1,1e-08]
[1759720755073,45.07732577,4532.2,4532.1,1e-08]
[1759720755555,45.07732577,4532.2,4532.1,0.45920001]
[1759720755852,45.07732577,4532.2,4532.1,1e-08]
[1759720756055,44.13883396,4532.2,4532.1,1e-08]
[1759720756556,44.13883396,4532.2,4532.1,0.45920001]
[1759720757419,45.36883396,4532.2,4532.1,0.45920001]
[1759720758824,46.59883396,4532.2,4532.1,0.45920001]
[1759720759368,46.59883396,4532.2,4532.1,1e-08]
[1759720759734,46.59883396,4532.2,4532.1,0.45920001]
[1759720759940,46.59883396,4532.2,4532.1,1e-08]
[1759720760159,47.82883396,4532.2,4532.1,0.45920001]
[1759720761226,47.82883396,4532.2,4532.1,1e-08]
[1759720761622,49.05883396,4532.2,4532.1,0.45920001]
[1759720762047,49.05883396,4532.2,4532.1,1e-08]
[1759720762048,48.94843396,4532.2,4532.1,1e-08]
[1759720762426,48.94843396,4532.2,4532.1,0.45920001]
[1759720762645,48.94843396,4532.2,4532.1,1e-08]
[1759720762861,48.94843396,4532.2,4532.1,0.45920001]
[1759720763042,50.17843396,4532.2,4532.1,0.45920001]
[1759720763260,50.17843396,4532.2,4532.1,1e-08]
[1759720763690,50.17843396,4532.2,4532.1,0.45920001]
[1759720763889,50.17843396,4532.2,4532.1,1e-08]
[1759720764581,51.40843396,4532.2,4532.1,1e-08]
[1759720764786,51.40843396,4532.2,4532.1,0.45920001]
[1759720765748,52.63843396,4532.2,4532.1,0.45920001]
[1759720765951,52.63843396,4532.2,4532.1,1e-08]
[1759720766161,52.63843396,4532.2,4532.1,0.45920001]
[1759720766459,52.63843396,4532.2,4532.1,1e-08]
[1759720767187,53.86843396,4532.2,4532.1,1e-08]
[1759720767697,51.662,4532.2,4532.1,0.45920001]
[1759720767869,51.662,4532.2,4532.1,13.04486701]
[1759720768163,51.662,4532.2,4532.1,12.99704901]
[1759720768783,52.892,4532.2,4532.1,28.12883201]
[1759720769087,52.892,4532.2,4532.1,35.80968265]
[1759720769088,48.91168384,4532.2,4532.1,35.80968265]
[1759720769289,48.91168384,4532.2,4532.1,35.69928265]
[1759720769466,48.91168384,4532.2,4532.1,35.80968265]
[1759720769863,46.71574401,4532.2,4532.1,38.30968265]
[1759720770201,46.16136768,4532.2,4532.1,38.30968265]
[1759720771004,43.96542785,4532.2,4532.1,38.30968265]
[1759720771305,43.12663686,4532.2,4532.1,38.30968265]
[1759720771511,44.35663686,4532.2,4532.1,38.30968265]
[1759720772801,45.58663686,4532.2,4532.1,38.30968265]
[1759720773009,45.58663686,4532.2,4532.1,36.11852965]
[1759720773171,45.58663686,4532.2,4532.1,6.70988201]
[1759720773371,47.79307082,4532.2,4532.1,7.53661801]
[1759720773917,47.79307082,4532.2,4532.1,4.61555901]
[1759720774110,47.79307082,4532.2,4532.1,7.00515901]
[1759720774111,49.02307082,4532.2,4532.1,7.00515901]
[1759720774401,46.81663686,4532.2,4532.1,7.00515901]
[1759720774904,49.02307082,4532.2,4532.1,7.20865401]
[1759720775515,50.25307082,4532.2,4532.1,4.80865401]
[1759720776510,50.68737082,4532.2,4532.1,1e-08]
[1759720776873,51.91737082,4532.2,4532.1,1e-08]
[1759720777078,51.48307082,4532.2,4532.1,1e-08]
[1759720777370,49.27663686,4532.2,4532.1,10.28194201]
[1759720777574,49.27663686,4532.2,4532.1,11.24736501]
[1759720777788,49.27663686,4532.2,4532.1,14.37188401]
[1759720777985,49.27663686,4532.2,4532.1,14.25927701]
[1759720778188,50.50663686,4532.2,4532.1,14.25927701]
[1759720778417,50.50663686,4532.2,4532.1,18.15861801]
[1759720778607,50.50663686,4532.2,4532.1,16.35612501]
[1759720778784,50.50663686,4532.2,4532.1,16.14358701]
[1759720778989,50.50663686,4532.2,4532.1,15.92924701]
[1759720779412,50.50663686,4532.2,4532.1,15.87889301]
[1759720779629,51.73663686,4532.2,4532.1,15.34591301]